[Event "Titled Tuesday Blitz August 17 2021"]
[White "Loy, Konstantin"]
[Black "Nastore, Pavel-Alexandru"]
[WhiteFideId "14122499"]
[BlackFideId "1255002"]
[WhiteElo "2084"]
[BlackElo "1763"]
[Result "0-1"]
[Round "11"]
[TimeControl "180+1"]
[Date "2021.08.18"]
[WhiteClock "0:00:02"]
[BlackClock "0:00:03"]

1. e4 {[%clk 0:02:49]}  c5 {[%clk 0:02:55]} 2. Nf3 {[%clk 0:02:49]}  d6 {[%clk 0:02:55]} 3. d4 {[%clk 0:02:49]}  cxd4 {[%clk 0:02:55]} 4. Qxd4 {[%clk 0:02:50]}  Nc6 {[%clk 0:02:54]} 5. Bb5 {[%clk 0:02:49]}  a6 {[%clk 0:02:39]} 6. Bxc6+ {[%clk 0:02:49]}  bxc6 {[%clk 0:02:40]} 7. c4 {[%clk 0:02:49]}  e5 {[%clk 0:02:39]} 8. Qd3 {[%clk 0:02:49]}  Nf6 {[%clk 0:02:15]} 9. O-O {[%clk 0:02:43]}  Be7 {[%clk 0:02:10]} 10. Nc3 {[%clk 0:02:43]}  Qc7 {[%clk 0:02:09]} 11. h3 {[%clk 0:02:34]}  O-O {[%clk 0:02:07]} 12. Be3 {[%clk 0:02:34]}  Be6 {[%clk 0:02:06]} 13. Rac1 {[%clk 0:02:28]}  Qb7 {[%clk 0:02:05]} 14. b3 {[%clk 0:02:17]}  h6 {[%clk 0:02:04]} 15. Rfd1 {[%clk 0:02:16]}  Rfd8 {[%clk 0:02:02]} 16. Qc2 {[%clk 0:02:05]}  Rac8 {[%clk 0:01:52]} 17. Na4 {[%clk 0:01:52]}  c5 {[%clk 0:01:28]} 18. Nc3 {[%clk 0:01:45]}  Bd7 {[%clk 0:01:28]} 19. Nd5 {[%clk 0:01:37]}  Nxd5 {[%clk 0:01:28]} 20. cxd5 {[%clk 0:01:36]}  Rf8 {[%clk 0:01:27]} 21. Nd2 {[%clk 0:01:35]}  f5 {[%clk 0:01:26]} 22. f3 {[%clk 0:01:36]}  f4 {[%clk 0:01:26]} 23. Bf2 {[%clk 0:01:35]}  g5 {[%clk 0:01:26]} 24. Nc4 {[%clk 0:01:35]}  h5 {[%clk 0:01:12]} 25. Kf1 {[%clk 0:01:32]}  Rf7 {[%clk 0:01:10]} 26. Ke2 {[%clk 0:01:28]}  g4 {[%clk 0:01:04]} 27. hxg4 {[%clk 0:01:28]}  hxg4 {[%clk 0:01:04]} 28. Rh1 {[%clk 0:01:26]}  g3 {[%clk 0:01:03]} 29. Be1 {[%clk 0:01:22]}  Rh7 {[%clk 0:00:46]} 30. Rxh7 {[%clk 0:01:21]}  Kxh7 {[%clk 0:00:47]} 31. Ba5 {[%clk 0:01:21]}  Kg7 {[%clk 0:00:45]} 32. Rh1 {[%clk 0:01:15]}  Bb5 {[%clk 0:00:07]} 33. Kd3 {[%clk 0:01:01]}  Bxc4+ {[%clk 0:00:07]} 34. Qxc4 {[%clk 0:01:00]}  Qb5 {[%clk 0:00:08]} 35. Bd2 {[%clk 0:00:44]}  Qxc4+ {[%clk 0:00:08]} 36. Kxc4 {[%clk 0:00:44]}  Kg6 {[%clk 0:00:07]} 37. a3 {[%clk 0:00:38]}  Kg7 {[%clk 0:00:07]} 38. Ba5 {[%clk 0:00:33]}  Bd8 {[%clk 0:00:05]} 39. Bd2 {[%clk 0:00:26]}  Bb6 {[%clk 0:00:05]} 40. Bc3 {[%clk 0:00:22]}  Ba7 {[%clk 0:00:06]} 41. Kd3 {[%clk 0:00:21]}  Kg6 {[%clk 0:00:06]} 42. Rb1 {[%clk 0:00:20]}  Rb8 {[%clk 0:00:06]} 43. b4 {[%clk 0:00:20]}  cxb4 {[%clk 0:00:05]} 44. Rxb4 {[%clk 0:00:20]}  Rc8 {[%clk 0:00:04]} 45. Rb7 {[%clk 0:00:19]}  Bc5 {[%clk 0:00:04]} 46. Bb4 {[%clk 0:00:18]}  Bxb4 {[%clk 0:00:04]} 47. axb4 {[%clk 0:00:19]}  Rh8 {[%clk 0:00:04]} 48. Rb6 {[%clk 0:00:19]}  Rh2 {[%clk 0:00:04]} 49. Rxd6+ {[%clk 0:00:19]}  Kf7 {[%clk 0:00:04]} 50. Rxa6 {[%clk 0:00:15]}  Rxg2 {[%clk 0:00:05]} 51. Ra7+ {[%clk 0:00:15]}  Ke8 {[%clk 0:00:04]} 52. Rg7 {[%clk 0:00:13]}  Rb2 {[%clk 0:00:04]} 53. Kc3 {[%clk 0:00:12]}  Rf2 {[%clk 0:00:05]} 54. Kc4 {[%clk 0:00:11]}  Rxf3 {[%clk 0:00:06]} 55. Kc5 {[%clk 0:00:09]}  Re3 {[%clk 0:00:06]} 56. d6 {[%clk 0:00:09]}  Rxe4 {[%clk 0:00:05]} 57. Kc6 {[%clk 0:00:09]}  Rc4+ {[%clk 0:00:05]} 58. Kd5 {[%clk 0:00:09]}  Rxb4 {[%clk 0:00:06]} 59. Ke6 {[%clk 0:00:10]}  Kf8 {[%clk 0:00:05]} 60. Rf7+ {[%clk 0:00:10]}  Kg8 {[%clk 0:00:04]} 61. Rc7 {[%clk 0:00:04]}  Rd4 {[%clk 0:00:04]} 62. d7 {[%clk 0:00:03]}  g2 {[%clk 0:00:03]} 63. Rc1 {[%clk 0:00:04]}  Rxd7 {[%clk 0:00:02]} 64. Kxe5 {[%clk 0:00:04]}  f3 {[%clk 0:00:02]} 65. Kf4 {[%clk 0:00:02]}  f2 {[%clk 0:00:02]} 66. Rc2 {[%clk 0:00:02]}  f1=Q+ {[%clk 0:00:02]} 67. Kg3 {[%clk 0:00:01]}  g1=Q+ {[%clk 0:00:03]} 68. Rg2 {[%clk 0:00:02]}  Rg7+ {[%clk 0:00:03]} 69. Kh4 {[%clk 0:00:02]}  Qgxg2 {[%clk 0:00:03]} 0-1


[Site "https://www.chess.com"]

[Event "Titled Tuesday Blitz August 17 2021"]
[White "Majer, Damir"]
[Black "Golubev, Mikhail"]
[WhiteFideId "4615689"]
[BlackFideId "14100983"]
[WhiteElo "2406"]
[BlackElo "2374"]
[Result "0-1"]
[Round "11"]
[TimeControl "180+1"]
[Date "2021.08.17"]
[WhiteClock "0:00:26"]
[BlackClock "0:00:09"]

1. d4 {[%clk 0:03:00]}  Nf6 {[%clk 0:02:58]} 2. Nf3 {[%clk 0:03:00]}  d6 {[%clk 0:02:58]} 3. e3 {[%clk 0:03:00]}  g6 {[%clk 0:02:57]} 4. Be2 {[%clk 0:03:00]}  Bg7 {[%clk 0:02:58]} 5. O-O {[%clk 0:03:01]}  O-O {[%clk 0:02:58]} 6. c4 {[%clk 0:03:01]}  Bf5 {[%clk 0:02:55]} 7. Nc3 {[%clk 0:03:01]}  Ne4 {[%clk 0:02:54]} 8. Nxe4 {[%clk 0:03:01]}  Bxe4 {[%clk 0:02:54]} 9. b4 {[%clk 0:03:01]}  Nd7 {[%clk 0:02:50]} 10. Bb2 {[%clk 0:03:00]}  Nf6 {[%clk 0:02:45]} 11. Qb3 {[%clk 0:02:54]}  c6 {[%clk 0:02:42]} 12. a4 {[%clk 0:02:51]}  Qd7 {[%clk 0:02:35]} 13. b5 {[%clk 0:02:51]}  Rac8 {[%clk 0:02:28]} 14. Rac1 {[%clk 0:02:41]}  c5 {[%clk 0:02:28]} 15. Rfd1 {[%clk 0:02:39]}  b6 {[%clk 0:02:23]} 16. d5 {[%clk 0:02:37]}  Bxf3 {[%clk 0:02:22]} 17. Bxf3 {[%clk 0:02:35]}  Ne8 {[%clk 0:02:22]} 18. a5 {[%clk 0:02:30]}  Bxb2 {[%clk 0:02:19]} 19. Qxb2 {[%clk 0:02:30]}  Ng7 {[%clk 0:02:18]} 20. Ra1 {[%clk 0:02:28]}  h5 {[%clk 0:02:14]} 21. axb6 {[%clk 0:02:25]}  axb6 {[%clk 0:02:14]} 22. Ra6 {[%clk 0:02:25]}  Rb8 {[%clk 0:02:14]} 23. Rda1 {[%clk 0:02:26]}  Rb7 {[%clk 0:02:13]} 24. Ra8 {[%clk 0:02:21]}  Rxa8 {[%clk 0:02:12]} 25. Rxa8+ {[%clk 0:02:20]}  Kh7 {[%clk 0:02:12]} 26. Qa1 {[%clk 0:02:17]}  Qc7 {[%clk 0:02:01]} 27. h3 {[%clk 0:02:15]}  Rb8 {[%clk 0:01:55]} 28. Ra7 {[%clk 0:02:14]}  Rb7 {[%clk 0:01:53]} 29. Ra8 {[%clk 0:02:15]}  Rb8 {[%clk 0:01:42]} 30. Ra7 {[%clk 0:02:15]}  Qd8 {[%clk 0:01:42]} 31. Be4 {[%clk 0:02:13]}  Ne8 {[%clk 0:01:39]} 32. g3 {[%clk 0:01:50]}  Nf6 {[%clk 0:01:38]} 33. Bd3 {[%clk 0:01:49]}  Kg8 {[%clk 0:01:38]} 34. Kg2 {[%clk 0:01:48]}  Ne8 {[%clk 0:01:34]} 35. Be4 {[%clk 0:01:45]}  Nc7 {[%clk 0:01:34]} 36. Bd3 {[%clk 0:01:44]}  Ra8 {[%clk 0:01:33]} 37. Rxa8 {[%clk 0:01:36]}  Qxa8 {[%clk 0:01:33]} 38. Qxa8+ {[%clk 0:01:36]}  Nxa8 {[%clk 0:01:33]} 39. f4 {[%clk 0:01:36]}  Nc7 {[%clk 0:01:31]} 40. Kf3 {[%clk 0:01:35]}  Ne8 {[%clk 0:01:27]} 41. e4 {[%clk 0:01:35]}  Nf6 {[%clk 0:01:23]} 42. g4 {[%clk 0:01:32]}  Nd7 {[%clk 0:01:11]} 43. Bf1 {[%clk 0:01:31]}  hxg4+ {[%clk 0:01:08]} 44. hxg4 {[%clk 0:01:30]}  g5 {[%clk 0:01:07]} 45. e5 {[%clk 0:00:56]}  gxf4 {[%clk 0:00:54]} 46. exd6 {[%clk 0:00:52]}  exd6 {[%clk 0:00:50]} 47. Kxf4 {[%clk 0:00:48]}  Kg7 {[%clk 0:00:46]} 48. g5 {[%clk 0:00:47]}  Ne5 {[%clk 0:00:44]} 49. Be2 {[%clk 0:00:47]}  f6 {[%clk 0:00:39]} 50. gxf6+ {[%clk 0:00:46]}  Kxf6 {[%clk 0:00:39]} 51. Bf1 {[%clk 0:00:45]}  Ng6+ {[%clk 0:00:39]} 52. Ke4 {[%clk 0:00:45]}  Kg5 {[%clk 0:00:39]} 53. Be2 {[%clk 0:00:44]}  Ne7 {[%clk 0:00:39]} 54. Bf1 {[%clk 0:00:43]}  Ng8 {[%clk 0:00:39]} 55. Bh3 {[%clk 0:00:42]}  Nf6+ {[%clk 0:00:39]} 56. Ke3 {[%clk 0:00:41]}  Nh5 {[%clk 0:00:19]} 57. Bf1 {[%clk 0:00:37]}  Nf4 {[%clk 0:00:18]} 58. Ke4 {[%clk 0:00:37]}  Ng6 {[%clk 0:00:17]} 59. Bh3 {[%clk 0:00:36]}  Ne5 {[%clk 0:00:17]} 60. Bf1 {[%clk 0:00:36]}  Ng4 {[%clk 0:00:17]} 61. Be2 {[%clk 0:00:36]}  Nf6+ {[%clk 0:00:16]} 62. Ke3 {[%clk 0:00:35]}  Kf5 {[%clk 0:00:17]} 63. Bd3+ {[%clk 0:00:33]}  Ke5 {[%clk 0:00:17]} 64. Be2 {[%clk 0:00:34]}  Ne4 {[%clk 0:00:17]} 65. Bf3 {[%clk 0:00:33]}  Ng5 {[%clk 0:00:17]} 66. Be2 {[%clk 0:00:32]}  Nf7 {[%clk 0:00:17]} 67. Bh5 {[%clk 0:00:31]}  Nh6 {[%clk 0:00:17]} 68. Bg6 {[%clk 0:00:29]}  Ng4+ {[%clk 0:00:17]} 69. Kf3 {[%clk 0:00:28]}  Nf6 {[%clk 0:00:16]} 70. Ke3 {[%clk 0:00:27]}  Ng8 {[%clk 0:00:12]} 71. Bh7 {[%clk 0:00:25]}  Ne7 {[%clk 0:00:12]} 72. Be4 {[%clk 0:00:24]}  Ng8 {[%clk 0:00:11]} 73. Bh7 {[%clk 0:00:23]}  Nf6 {[%clk 0:00:12]} 74. Bg6 {[%clk 0:00:23]}  Ng4+ {[%clk 0:00:09]} 75. Kf3 {[%clk 0:00:22]}  Kf6 {[%clk 0:00:08]} 76. Bc2 {[%clk 0:00:20]}  Ne5+ {[%clk 0:00:08]} 77. Ke4 {[%clk 0:00:21]}  Nxc4 {[%clk 0:00:09]} 78. Bb3 {[%clk 0:00:21]}  Ne5 {[%clk 0:00:09]} 79. Bc2 {[%clk 0:00:22]}  Kg5 {[%clk 0:00:09]} 80. Bd1 {[%clk 0:00:23]}  Nf7 {[%clk 0:00:08]} 81. Bc2 {[%clk 0:00:23]}  Nh6 {[%clk 0:00:08]} 82. Bd1 {[%clk 0:00:23]}  Ng4 {[%clk 0:00:08]} 83. Bc2 {[%clk 0:00:24]}  Nf6+ {[%clk 0:00:08]} 84. Ke3 {[%clk 0:00:23]}  Nxd5+ {[%clk 0:00:08]} 85. Ke4 {[%clk 0:00:24]}  Nf6+ {[%clk 0:00:08]} 86. Ke3 {[%clk 0:00:24]}  d5 {[%clk 0:00:08]} 87. Kd3 {[%clk 0:00:25]}  d4 {[%clk 0:00:08]} 88. Kc4 {[%clk 0:00:24]}  Kf4 {[%clk 0:00:08]} 89. Bd3 {[%clk 0:00:24]}  Ke5 {[%clk 0:00:08]} 90. Bg6 {[%clk 0:00:24]}  Nd5 {[%clk 0:00:08]} 91. Bf7 {[%clk 0:00:24]}  Ne3+ {[%clk 0:00:08]} 92. Kd3 {[%clk 0:00:24]}  c4+ {[%clk 0:00:09]} 93. Bxc4 {[%clk 0:00:24]}  Nxc4 {[%clk 0:00:09]} 94. Kxc4 {[%clk 0:00:24]}  Ke4 {[%clk 0:00:09]} 95. Kb4 {[%clk 0:00:24]}  d3 {[%clk 0:00:09]} 96. Kc4 {[%clk 0:00:25]}  d2 {[%clk 0:00:09]} 97. Kb4 {[%clk 0:00:26]}  d1=Q {[%clk 0:00:09]} 0-1


[Site "https://www.chess.com"]

[Event "Titled Tuesday Blitz August 17 2021"]
[White "Martins, Igor Carvalho Ribeiro"]
[Black "Shapiro, Daniel"]
[WhiteFideId "2162962"]
[BlackFideId "2001780"]
[WhiteElo "2444"]
[BlackElo "2304"]
[Result "1-0"]
[Round "11"]
[TimeControl "180+1"]
[Date "2021.08.18"]
[WhiteClock "0:00:45"]
[BlackClock "0:00:06"]

1. Nf3 {[%clk 0:03:00]}  Nf6 {[%clk 0:02:57]} 2. c4 {[%clk 0:03:00]}  e6 {[%clk 0:02:52]} 3. Nc3 {[%clk 0:03:00]}  b6 {[%clk 0:02:48]} 4. g3 {[%clk 0:02:59]}  d5 {[%clk 0:02:41]} 5. cxd5 {[%clk 0:02:58]}  exd5 {[%clk 0:02:40]} 6. d4 {[%clk 0:02:57]}  Be7 {[%clk 0:02:35]} 7. Bg2 {[%clk 0:02:57]}  O-O {[%clk 0:02:36]} 8. O-O {[%clk 0:02:57]}  Bb7 {[%clk 0:02:19]} 9. Ne5 {[%clk 0:02:54]}  Nbd7 {[%clk 0:02:16]} 10. Bg5 {[%clk 0:02:19]}  h6 {[%clk 0:02:11]} 11. Bxf6 {[%clk 0:02:09]}  Nxf6 {[%clk 0:02:10]} 12. e3 {[%clk 0:02:04]}  a6 {[%clk 0:02:09]} 13. Nd3 {[%clk 0:01:56]}  Qd6 {[%clk 0:02:03]} 14. b4 {[%clk 0:01:52]}  Ne4 {[%clk 0:01:45]} 15. Rc1 {[%clk 0:01:45]}  f5 {[%clk 0:01:36]} 16. Qc2 {[%clk 0:01:37]}  c6 {[%clk 0:01:29]} 17. Na4 {[%clk 0:01:32]}  Qd8 {[%clk 0:01:18]} 18. Qb2 {[%clk 0:01:24]}  Bf6 {[%clk 0:01:11]} 19. Rc2 {[%clk 0:01:19]}  a5 {[%clk 0:01:00]} 20. bxa5 {[%clk 0:01:13]}  Rxa5 {[%clk 0:01:00]} 21. Qxb6 {[%clk 0:01:06]}  Qxb6 {[%clk 0:00:41]} 22. Nxb6 {[%clk 0:01:06]}  Ba6 {[%clk 0:00:32]} 23. Rd1 {[%clk 0:01:00]}  Bd8 {[%clk 0:00:18]} 24. Nd7 {[%clk 0:00:58]}  Rf7 {[%clk 0:00:16]} 25. N3c5 {[%clk 0:00:56]}  Bc4 {[%clk 0:00:14]} 26. Ne5 {[%clk 0:00:53]}  Rfa7 {[%clk 0:00:13]} 27. Nxc4 {[%clk 0:00:53]}  dxc4 {[%clk 0:00:12]} 28. Nxe4 {[%clk 0:00:49]}  fxe4 {[%clk 0:00:11]} 29. Bxe4 {[%clk 0:00:49]}  Rxa2 {[%clk 0:00:11]} 30. Rxc4 {[%clk 0:00:49]}  Rb2 {[%clk 0:00:09]} 31. Rxc6 {[%clk 0:00:46]}  Raa2 {[%clk 0:00:08]} 32. Bd5+ {[%clk 0:00:46]}  Kh7 {[%clk 0:00:07]} 33. Bxa2 {[%clk 0:00:46]}  Rxa2 {[%clk 0:00:06]} 34. d5 {[%clk 0:00:46]}  Bf6 {[%clk 0:00:06]} 35. d6 {[%clk 0:00:45]} 1-0


[Site "https://www.chess.com"]

[Event "Titled Tuesday Blitz August 17 2021"]
[White "Mekhitarian, Krikor Sevag"]
[Black "Nazaretyan, Tigran"]
[WhiteFideId "2107660"]
[BlackFideId "24162345"]
[WhiteElo "2598"]
[BlackElo "2167"]
[Result "0-1"]
[Round "11"]
[TimeControl "180+1"]
[Date "2021.08.17"]
[WhiteClock "0:00:16"]
[BlackClock "0:01:52"]

1. e4 {[%clk 0:03:00]}  c5 {[%clk 0:02:59]} 2. Nf3 {[%clk 0:02:59]}  Nc6 {[%clk 0:02:59]} 3. d4 {[%clk 0:02:51]}  cxd4 {[%clk 0:02:59]} 4. Nxd4 {[%clk 0:02:52]}  Nf6 {[%clk 0:02:59]} 5. Nc3 {[%clk 0:02:50]}  d6 {[%clk 0:02:59]} 6. h3 {[%clk 0:02:45]}  e5 {[%clk 0:02:58]} 7. Nf3 {[%clk 0:02:43]}  h6 {[%clk 0:02:58]} 8. Bc4 {[%clk 0:02:38]}  Be6 {[%clk 0:02:58]} 9. Qe2 {[%clk 0:02:36]}  Be7 {[%clk 0:02:56]} 10. O-O {[%clk 0:02:34]}  O-O {[%clk 0:02:56]} 11. a3 {[%clk 0:02:35]}  Rc8 {[%clk 0:02:55]} 12. Ba2 {[%clk 0:02:33]}  Nd4 {[%clk 0:02:48]} 13. Nxd4 {[%clk 0:02:32]}  exd4 {[%clk 0:02:48]} 14. Nd5 {[%clk 0:02:33]}  Nxd5 {[%clk 0:02:45]} 15. exd5 {[%clk 0:02:34]}  Bf5 {[%clk 0:02:45]} 16. Bb3 {[%clk 0:02:33]}  Bf6 {[%clk 0:02:34]} 17. Bf4 {[%clk 0:01:50]}  Qb6 {[%clk 0:02:25]} 18. Qf3 {[%clk 0:00:49]}  Bg6 {[%clk 0:02:01]} 19. Bxh6 {[%clk 0:00:45]}  d3 {[%clk 0:02:01]} 20. Bc1 {[%clk 0:00:36]}  dxc2 {[%clk 0:01:58]} 21. Ba4 {[%clk 0:00:25]}  Bxb2 {[%clk 0:01:51]} 22. Bxb2 {[%clk 0:00:15]}  Qxb2 {[%clk 0:01:52]} 23. Rac1 {[%clk 0:00:16]}  b5 {[%clk 0:01:52]} 0-1


[Site "https://www.chess.com"]

[Event "Titled Tuesday Blitz August 17 2021"]
[White "Mikhnenko, Alexander"]
[Black "Tikhonov, Viacheslav"]
[WhiteFideId "34143014"]
[BlackFideId "44196407"]
[WhiteElo "2135"]
[BlackElo "1773"]
[Result "1-0"]
[Round "11"]
[TimeControl "180+1"]
[Date "2021.08.17"]
[WhiteClock "0:00:54"]
[BlackClock "0:00:07"]

1. d4 {[%clk 0:02:50]}  Nf6 {[%clk 0:02:58]} 2. Nf3 {[%clk 0:02:48]}  g6 {[%clk 0:02:58]} 3. Nc3 {[%clk 0:02:48]}  d5 {[%clk 0:02:58]} 4. Bf4 {[%clk 0:02:48]}  Bg7 {[%clk 0:02:58]} 5. Nb5 {[%clk 0:02:48]}  Na6 {[%clk 0:02:57]} 6. e3 {[%clk 0:02:47]}  c6 {[%clk 0:02:57]} 7. Na3 {[%clk 0:02:46]}  Nc7 {[%clk 0:02:57]} 8. h3 {[%clk 0:02:45]}  O-O {[%clk 0:02:57]} 9. c4 {[%clk 0:02:45]}  Nce8 {[%clk 0:02:54]} 10. Be2 {[%clk 0:02:44]}  dxc4 {[%clk 0:02:53]} 11. Nxc4 {[%clk 0:02:45]}  Nd6 {[%clk 0:02:54]} 12. O-O {[%clk 0:02:43]}  Nd5 {[%clk 0:02:50]} 13. Bh2 {[%clk 0:02:42]}  Ne4 {[%clk 0:02:48]} 14. Rc1 {[%clk 0:02:40]}  Be6 {[%clk 0:02:41]} 15. Qc2 {[%clk 0:02:38]}  Nd6 {[%clk 0:02:38]} 16. a3 {[%clk 0:02:33]}  Bf5 {[%clk 0:02:34]} 17. Qb3 {[%clk 0:02:24]}  Nxc4 {[%clk 0:02:12]} 18. Bxc4 {[%clk 0:02:25]}  Nb6 {[%clk 0:02:07]} 19. Be2 {[%clk 0:02:23]}  Be4 {[%clk 0:02:04]} 20. Ne5 {[%clk 0:02:23]}  Qd5 {[%clk 0:01:47]} 21. Qb4 {[%clk 0:02:09]}  Bxg2 {[%clk 0:01:06]} 22. Rc5 {[%clk 0:02:07]}  Bxf1 {[%clk 0:01:06]} 23. Rxd5 {[%clk 0:01:57]}  Nxd5 {[%clk 0:01:07]} 24. Qe1 {[%clk 0:01:52]}  Bxh3 {[%clk 0:01:02]} 25. Bf3 {[%clk 0:01:45]}  Be6 {[%clk 0:00:55]} 26. Nd3 {[%clk 0:01:44]}  b6 {[%clk 0:00:50]} 27. Ne5 {[%clk 0:01:43]}  Rac8 {[%clk 0:00:47]} 28. b4 {[%clk 0:01:41]}  b5 {[%clk 0:00:43]} 29. Nd3 {[%clk 0:01:40]}  Nb6 {[%clk 0:00:40]} 30. Nc5 {[%clk 0:01:39]}  Bd5 {[%clk 0:00:39]} 31. e4 {[%clk 0:01:36]}  Bc4 {[%clk 0:00:38]} 32. Qe3 {[%clk 0:01:26]}  Rfd8 {[%clk 0:00:35]} 33. Be5 {[%clk 0:01:27]}  Bxe5 {[%clk 0:00:31]} 34. dxe5 {[%clk 0:01:28]}  e6 {[%clk 0:00:27]} 35. Nb7 {[%clk 0:01:24]}  Rd3 {[%clk 0:00:26]} 36. Qf4 {[%clk 0:01:22]}  Nd7 {[%clk 0:00:23]} 37. Nd6 {[%clk 0:01:20]}  Rf8 {[%clk 0:00:23]} 38. Be2 {[%clk 0:01:16]}  Rxa3 {[%clk 0:00:19]} 39. Bxc4 {[%clk 0:01:16]}  bxc4 {[%clk 0:00:20]} 40. Nxc4 {[%clk 0:01:17]}  Ra1+ {[%clk 0:00:20]} 41. Kg2 {[%clk 0:01:17]}  Nb6 {[%clk 0:00:20]} 42. Ne3 {[%clk 0:01:13]}  h5 {[%clk 0:00:18]} 43. Qh6 {[%clk 0:00:53]}  Rd8 {[%clk 0:00:17]} 44. Nf5 {[%clk 0:00:44]}  exf5 {[%clk 0:00:16]} 45. exf5 {[%clk 0:00:45]}  gxf5 {[%clk 0:00:07]} 46. Qg5+ {[%clk 0:00:44]}  Kf8 {[%clk 0:00:08]} 47. Qxd8+ {[%clk 0:00:45]}  Kg7 {[%clk 0:00:06]} 48. Qf6+ {[%clk 0:00:45]}  Kg8 {[%clk 0:00:05]} 49. e6 {[%clk 0:00:45]}  Re1 {[%clk 0:00:01]} 50. Qxf7+ {[%clk 0:00:45]}  Kh8 {[%clk 0:00:01]} 51. e7 {[%clk 0:00:45]}  Nd5 {[%clk 0:00:01]} 52. e8=Q+ {[%clk 0:00:46]}  Rxe8 {[%clk 0:00:02]} 53. Qxe8+ {[%clk 0:00:46]}  Kg7 {[%clk 0:00:03]} 54. Qxc6 {[%clk 0:00:46]}  Nxb4 {[%clk 0:00:01]} 55. Qb7+ {[%clk 0:00:46]}  Kg6 {[%clk 0:00:02]} 56. Qxb4 {[%clk 0:00:47]}  Kg5 {[%clk 0:00:03]} 57. Qe7+ {[%clk 0:00:47]}  Kf4 {[%clk 0:00:03]} 58. Qxa7 {[%clk 0:00:48]}  h4 {[%clk 0:00:03]} 59. Qe3+ {[%clk 0:00:49]}  Kg4 {[%clk 0:00:03]} 60. Qh3+ {[%clk 0:00:49]}  Kg5 {[%clk 0:00:03]} 61. Kf3 {[%clk 0:00:49]}  f4 {[%clk 0:00:03]} 62. Qg4+ {[%clk 0:00:49]}  Kf6 {[%clk 0:00:04]} 63. Qxh4+ {[%clk 0:00:50]}  Ke5 {[%clk 0:00:05]} 64. Qxf4+ {[%clk 0:00:51]}  Ke6 {[%clk 0:00:06]} 65. Qe4+ {[%clk 0:00:52]}  Kf6 {[%clk 0:00:06]} 66. Ke3 {[%clk 0:00:52]}  Kg5 {[%clk 0:00:06]} 67. f4+ {[%clk 0:00:53]}  Kf6 {[%clk 0:00:07]} 68. f5 {[%clk 0:00:54]}  Kf7 {[%clk 0:00:08]} 69. Qe6+ {[%clk 0:00:53]}  Kg7 {[%clk 0:00:08]} 70. Ke4 {[%clk 0:00:54]}  Kf8 {[%clk 0:00:09]} 71. Qd6+ {[%clk 0:00:54]}  Ke8 {[%clk 0:00:09]} 72. Ke5 {[%clk 0:00:55]}  Kf7 {[%clk 0:00:09]} 73. Qd7+ {[%clk 0:00:55]}  Kg8 {[%clk 0:00:09]} 74. f6 {[%clk 0:00:55]}  Kh8 {[%clk 0:00:10]} 75. f7 {[%clk 0:00:54]}  Kg7 {[%clk 0:00:09]} 76. Ke6 {[%clk 0:00:54]}  Kf8 {[%clk 0:00:06]} 77. Qd8+ {[%clk 0:00:51]}  Kg7 {[%clk 0:00:07]} 78. f8=N {[%clk 0:00:51]}  Kh6 {[%clk 0:00:07]} 79. Qf6+ {[%clk 0:00:50]}  Kh5 {[%clk 0:00:07]} 80. Qg7 {[%clk 0:00:50]}  Kh4 {[%clk 0:00:07]} 81. Nd7 {[%clk 0:00:51]}  Kh3 {[%clk 0:00:04]} 82. Nc5 {[%clk 0:00:52]}  Kh2 {[%clk 0:00:05]} 83. Ne4 {[%clk 0:00:52]}  Kh1 {[%clk 0:00:06]} 84. Qg5 {[%clk 0:00:52]}  Kh2 {[%clk 0:00:07]} 85. Qg3+ {[%clk 0:00:53]}  Kh1 {[%clk 0:00:07]} 86. Nf2# {[%clk 0:00:54]} 1-0


[Site "https://www.chess.com"]

[Event "Titled Tuesday Blitz August 17 2021"]
[White "Mirzanurov, Bulat"]
[Black "Bures, Vit"]
[WhiteFideId "4184521"]
[BlackFideId "309052"]
[WhiteElo "2208"]
[BlackElo "2123"]
[Result "1-0"]
[Round "11"]
[TimeControl "180+1"]
[Date "2021.08.17"]
[WhiteClock "0:00:21"]
[BlackClock "0:00:02"]

1. e4 {[%clk 0:03:00]}  e5 {[%clk 0:02:59]} 2. Nf3 {[%clk 0:03:00]}  Nc6 {[%clk 0:02:58]} 3. Bc4 {[%clk 0:03:00]}  Bc5 {[%clk 0:02:58]} 4. c3 {[%clk 0:03:00]}  Nf6 {[%clk 0:02:58]} 5. d3 {[%clk 0:03:01]}  O-O {[%clk 0:02:56]} 6. O-O {[%clk 0:03:01]}  d6 {[%clk 0:02:57]} 7. h3 {[%clk 0:02:59]}  a5 {[%clk 0:02:56]} 8. Bb3 {[%clk 0:02:50]}  Be6 {[%clk 0:02:55]} 9. Bc2 {[%clk 0:02:49]}  Ba7 {[%clk 0:02:53]} 10. Nbd2 {[%clk 0:02:44]}  h6 {[%clk 0:02:52]} 11. Re1 {[%clk 0:02:44]}  Ne7 {[%clk 0:02:38]} 12. Nf1 {[%clk 0:02:42]}  Ng6 {[%clk 0:02:38]} 13. Ng3 {[%clk 0:02:42]}  Re8 {[%clk 0:02:28]} 14. Be3 {[%clk 0:02:32]}  Bxe3 {[%clk 0:02:27]} 15. Rxe3 {[%clk 0:02:31]}  d5 {[%clk 0:02:27]} 16. Re1 {[%clk 0:02:22]}  dxe4 {[%clk 0:02:23]} 17. dxe4 {[%clk 0:02:22]}  Qe7 {[%clk 0:02:13]} 18. Qe2 {[%clk 0:02:19]}  Qc5 {[%clk 0:02:12]} 19. Qe3 {[%clk 0:02:15]}  Qxe3 {[%clk 0:02:06]} 20. Rxe3 {[%clk 0:02:14]}  Red8 {[%clk 0:02:04]} 21. Ree1 {[%clk 0:02:11]}  Rd7 {[%clk 0:01:57]} 22. a4 {[%clk 0:02:09]}  Rad8 {[%clk 0:01:56]} 23. Rad1 {[%clk 0:02:07]}  Kf8 {[%clk 0:01:52]} 24. Rxd7 {[%clk 0:02:05]}  Rxd7 {[%clk 0:01:53]} 25. Rd1 {[%clk 0:02:05]}  Rxd1+ {[%clk 0:01:53]} 26. Bxd1 {[%clk 0:02:04]}  Ke7 {[%clk 0:01:53]} 27. Kf1 {[%clk 0:02:03]}  Kd6 {[%clk 0:01:53]} 28. Bc2 {[%clk 0:01:54]}  Nf4 {[%clk 0:01:51]} 29. Ne2 {[%clk 0:01:50]}  Bc4 {[%clk 0:01:46]} 30. Ng1 {[%clk 0:01:47]}  Kc5 {[%clk 0:01:29]} 31. g3 {[%clk 0:01:42]}  Bxe2+ {[%clk 0:01:27]} 32. Nxe2 {[%clk 0:01:38]}  Nxh3 {[%clk 0:00:54]} 33. Kg2 {[%clk 0:01:23]}  Ng5 {[%clk 0:00:50]} 34. f3 {[%clk 0:01:23]}  Ne6 {[%clk 0:00:46]} 35. Nc1 {[%clk 0:01:20]}  Kd6 {[%clk 0:00:41]} 36. Nd3 {[%clk 0:01:16]}  Nd7 {[%clk 0:00:40]} 37. f4 {[%clk 0:01:14]}  f6 {[%clk 0:00:39]} 38. Kf3 {[%clk 0:01:06]}  Nec5 {[%clk 0:00:38]} 39. Nc1 {[%clk 0:00:58]}  Nb6 {[%clk 0:00:33]} 40. b3 {[%clk 0:00:54]}  Nbd7 {[%clk 0:00:18]} 41. f5 {[%clk 0:00:48]}  c6 {[%clk 0:00:15]} 42. Kg4 {[%clk 0:00:46]}  b5 {[%clk 0:00:13]} 43. Kh5 {[%clk 0:00:45]}  bxa4 {[%clk 0:00:09]} 44. bxa4 {[%clk 0:00:44]}  Ke7 {[%clk 0:00:09]} 45. Kg6 {[%clk 0:00:42]}  Kf8 {[%clk 0:00:09]} 46. g4 {[%clk 0:00:28]}  Nb6 {[%clk 0:00:08]} 47. Ne2 {[%clk 0:00:24]}  Nbxa4 {[%clk 0:00:07]} 48. Ng3 {[%clk 0:00:22]}  Nxc3 {[%clk 0:00:06]} 49. Nh5 {[%clk 0:00:22]}  N3xe4 {[%clk 0:00:06]} 50. Nxg7 {[%clk 0:00:21]}  a4 {[%clk 0:00:05]} 51. Ne6+ {[%clk 0:00:21]}  Nxe6 {[%clk 0:00:05]} 52. fxe6 {[%clk 0:00:21]}  a3 {[%clk 0:00:02]} 53. Bxe4 {[%clk 0:00:21]}  a2 {[%clk 0:00:02]} 54. Kxf6 {[%clk 0:00:21]} 1-0


[Site "https://www.chess.com"]